[Event "Late-Titled-Tuesday-Blitz-November-28-2023"]
[Site "Chess.com"]
[Date "2023.11.28"]
[Round "4"]
[White "JackRodgers"]
[Black "joppie2"]
[Result "0-1"]
[WhiteElo "2568"]
[BlackElo "2993"]
[TimeControl "180+1"]
[EndTime "14:39:48 PST"]
[Termination "joppie2 won by checkmate"]

1. d4 {[%clk 0:03:00.9]} 1... Nf6 {[%clk 0:03:00]} 2. Bg5 {[%clk 0:03:01]} 2...
d5 {[%clk 0:02:58.3]} 3. Bxf6 {[%clk 0:03:01.2]} 3... gxf6 {[%clk 0:02:58.3]} 4.
e3 {[%clk 0:03:01.3]} 4... c5 {[%clk 0:02:58.9]} 5. dxc5 {[%clk 0:03:01.2]} 5...
e6 {[%clk 0:02:59]} 6. c4 {[%clk 0:03:01.2]} 6... dxc4 {[%clk 0:02:59.1]} 7.
Qxd8+ {[%clk 0:03:02]} 7... Kxd8 {[%clk 0:02:59.3]} 8. Bxc4 {[%clk 0:03:02.2]}
8... Bxc5 {[%clk 0:02:59.9]} 9. Nc3 {[%clk 0:03:02.1]} 9... Ke7 {[%clk
0:03:00.4]} 10. Nf3 {[%clk 0:03:01.9]} 10... Nd7 {[%clk 0:03:00.7]} 11. Ke2
{[%clk 0:03:00.7]} 11... f5 {[%clk 0:03:01.2]} 12. Rac1 {[%clk 0:03:00.3]} 12...
a6 {[%clk 0:03:00]} 13. a3 {[%clk 0:03:00.6]} 13... b5 {[%clk 0:03:00.3]} 14.
Bd3 {[%clk 0:02:59.2]} 14... Bb7 {[%clk 0:03:00.7]} 15. b4 {[%clk 0:02:57.9]}
15... Bb6 {[%clk 0:02:59.8]} 16. e4 {[%clk 0:02:53.7]} 16... Rhg8 {[%clk
0:02:56.2]} 17. Rhg1 {[%clk 0:02:44.2]} 17... Kf6 {[%clk 0:02:50.8]} 18. exf5
{[%clk 0:02:26.8]} 18... exf5 {[%clk 0:02:50.6]} 19. a4 {[%clk 0:02:26.3]} 19...
Rg4 {[%clk 0:02:48.9]} 20. axb5 {[%clk 0:02:24.3]} 20... axb5 {[%clk 0:02:48]}
21. Bxb5 {[%clk 0:02:11.7]} 21... Rxb4 {[%clk 0:02:48.1]} 22. Bxd7 {[%clk
0:02:06.7]} 22... Rb2+ {[%clk 0:02:48.5]} 23. Nd2 {[%clk 0:01:47.6]} 23... Ba6+
{[%clk 0:02:48]} 24. Bb5 {[%clk 0:01:42.1]} 24... Rxb5 {[%clk 0:02:45.2]} 25.
Nxb5 {[%clk 0:01:38.6]} 25... Bxb5+ {[%clk 0:02:46.1]} 26. Nc4 {[%clk
0:01:27.8]} 26... Ra2+ {[%clk 0:02:44.1]} 27. Kd3 {[%clk 0:01:27.2]} 27... Bxf2
{[%clk 0:02:40.1]} 28. Rgf1 {[%clk 0:01:21.8]} 28... Bh4 {[%clk 0:02:01]} 29. g4
{[%clk 0:01:18.7]} 29... Bd7 {[%clk 0:01:51.3]} 30. Nd6 {[%clk 0:01:06.2]} 30...
Ke5 {[%clk 0:01:41]} 31. Nc4+ {[%clk 0:00:54]} 31... Kf6 {[%clk 0:01:41.5]} 32.
Nd6 {[%clk 0:00:51.4]} 32... Ke6 {[%clk 0:01:42]} 33. Nxf5 {[%clk 0:00:37]}
33... Bb5+ {[%clk 0:01:42.1]} 34. Ke4 {[%clk 0:00:35.2]} 34... Bxf1 {[%clk
0:01:38.4]} 35. Nd4+ {[%clk 0:00:35.3]} 35... Ke7 {[%clk 0:01:35.1]} 36. Rxf1
{[%clk 0:00:36.2]} 36... Rxh2 {[%clk 0:01:33.4]} 37. Ra1 {[%clk 0:00:33.7]}
37... Bf2 {[%clk 0:01:14.1]} 38. Nf5+ {[%clk 0:00:24.7]} 38... Kd7 {[%clk
0:01:09.9]} 39. Ra6 {[%clk 0:00:20.5]} 39... Bc5 {[%clk 0:01:04.6]} 40. Rf6
{[%clk 0:00:18.4]} 40... Ke8 {[%clk 0:01:02.2]} 41. Rh6 {[%clk 0:00:15.3]} 41...
Rxh6 {[%clk 0:00:49.8]} 42. Nxh6 {[%clk 0:00:15.6]} 42... Ke7 {[%clk 0:00:50.5]}
43. Kf5 {[%clk 0:00:14.6]} 43... Be3 {[%clk 0:00:43.6]} 44. Ng8+ {[%clk
0:00:11.6]} 44... Kf8 {[%clk 0:00:43.6]} 45. Nf6 {[%clk 0:00:12.5]} 45... h6
{[%clk 0:00:42.5]} 46. Nd7+ {[%clk 0:00:09.4]} 46... Kg7 {[%clk 0:00:42.5]} 47.
Ne5 {[%clk 0:00:09.4]} 47... Bg5 {[%clk 0:00:43.1]} 48. Nf3 {[%clk 0:00:08.9]}
48... Bf6 {[%clk 0:00:43.4]} 49. Nd2 {[%clk 0:00:08.3]} 49... Bd8 {[%clk
0:00:43]} 50. Ne4 {[%clk 0:00:08.3]} 50... Be7 {[%clk 0:00:42.7]} 51. Nd2 {[%clk
0:00:07.7]} 51... Bb4 {[%clk 0:00:40.7]} 52. Ne4 {[%clk 0:00:07]} 52... Ba5
{[%clk 0:00:40.6]} 53. Ng3 {[%clk 0:00:07.2]} 53... Kf8 {[%clk 0:00:40.4]} 54.
Ne4 {[%clk 0:00:06.4]} 54... Be1 {[%clk 0:00:39.7]} 55. Nf6 {[%clk 0:00:06.5]}
55... Ke7 {[%clk 0:00:40.2]} 56. Ne4 {[%clk 0:00:07]} 56... Bh4 {[%clk
0:00:39.7]} 57. Nc5 {[%clk 0:00:07.4]} 57... Kd6 {[%clk 0:00:38.7]} 58. Ne4+
{[%clk 0:00:07.9]} 58... Kd5 {[%clk 0:00:39.3]} 59. Nc3+ {[%clk 0:00:07.6]}
59... Kd4 {[%clk 0:00:39.3]} 60. Ne4 {[%clk 0:00:08.5]} 60... Be7 {[%clk
0:00:38.6]} 61. Ng3 {[%clk 0:00:08]} 61... Ke3 {[%clk 0:00:38.2]} 62. Ne4 {[%clk
0:00:07.9]} 62... Kf3 {[%clk 0:00:38.1]} 63. Nc3 {[%clk 0:00:07.6]} 63... Bf8
{[%clk 0:00:36.7]} 64. Nd5 {[%clk 0:00:07.6]} 64... Bb4 {[%clk 0:00:37.4]} 65.
Nf6 {[%clk 0:00:06.9]} 65... Bf8 {[%clk 0:00:35.8]} 66. Nd7 {[%clk 0:00:05.8]}
66... Bg7 {[%clk 0:00:35.8]} 67. Nc5 {[%clk 0:00:05.4]} 67... Ke3 {[%clk
0:00:35.2]} 68. Ne4 {[%clk 0:00:05]} 68... Bf8 {[%clk 0:00:32.6]} 69. Nf6 {[%clk
0:00:05.5]} 69... Kd4 {[%clk 0:00:31.5]} 70. Ne4 {[%clk 0:00:04.1]} 70... Be7
{[%clk 0:00:32.1]} 71. Ng3 {[%clk 0:00:04.1]} 71... Bd8 {[%clk 0:00:30.2]} 72.
Ne4 {[%clk 0:00:04.3]} 72... Bc7 {[%clk 0:00:28.7]} 73. Nf6 {[%clk 0:00:04.4]}
73... Be5 {[%clk 0:00:28.9]} 74. Ng8 {[%clk 0:00:03.7]} 74... Bg7 {[%clk
0:00:27.4]} 75. Ne7 {[%clk 0:00:03.9]} 75... Kc5 {[%clk 0:00:26.6]} 76. Ke4
{[%clk 0:00:03.2]} 76... Bf8 {[%clk 0:00:21.7]} 77. Nf5 {[%clk 0:00:04.1]} 77...
Kc6 {[%clk 0:00:17.8]} 78. Ne3 {[%clk 0:00:04.4]} 78... Kd6 {[%clk 0:00:17.8]}
79. Kf5 {[%clk 0:00:05]} 79... Bg7 {[%clk 0:00:17.4]} 80. Nc4+ {[%clk
0:00:05.4]} 80... Kd5 {[%clk 0:00:18]} 81. Ne3+ {[%clk 0:00:05.5]} 81... Kd4
{[%clk 0:00:18.7]} 82. Ng2 {[%clk 0:00:05.7]} 82... Be5 {[%clk 0:00:17.2]} 83.
g5 {[%clk 0:00:04]} 83... h5 {[%clk 0:00:17.2]} 84. Nh4 {[%clk 0:00:04]} 84...
Bg3 {[%clk 0:00:16.3]} 85. Nf3+ {[%clk 0:00:04.3]} 85... Ke3 {[%clk 0:00:17]}
86. Ng1 {[%clk 0:00:04.3]} 86... Kf2 {[%clk 0:00:13.4]} 87. Nh3+ {[%clk
0:00:03.1]} 87... Kg2 {[%clk 0:00:14]} 88. Nf4+ {[%clk 0:00:03.5]} 88... Bxf4
{[%clk 0:00:14.1]} 89. Kxf4 {[%clk 0:00:04.4]} 89... h4 {[%clk 0:00:14.8]} 90.
Kf5 {[%clk 0:00:04.2]} 90... h3 {[%clk 0:00:15.3]} 91. Kf6 {[%clk 0:00:05.1]}
91... h2 {[%clk 0:00:15.8]} 92. Kxf7 {[%clk 0:00:05.9]} 92... h1=Q {[%clk
0:00:16.7]} 93. g6 {[%clk 0:00:06.8]} 93... Qf1+ {[%clk 0:00:17.4]} 94. Kg8
{[%clk 0:00:07.1]} 94... Qc4+ {[%clk 0:00:17.6]} 95. Kh7 {[%clk 0:00:07.3]}
95... Qe4 {[%clk 0:00:17.8]} 96. Kh8 {[%clk 0:00:07.5]} 96... Qh4+ {[%clk
0:00:17.5]} 97. Kg8 {[%clk 0:00:07]} 97... Qf6 {[%clk 0:00:16.1]} 98. g7 {[%clk
0:00:07.9]} 98... Kg3 {[%clk 0:00:16.8]} 99. Kh7 {[%clk 0:00:08.4]} 99... Qf7
{[%clk 0:00:17.5]} 100. Kh8 {[%clk 0:00:08.6]} 100... Qh5+ {[%clk 0:00:18.1]}
101. Kg8 {[%clk 0:00:08.9]} 101... Kf4 {[%clk 0:00:19]} 102. Kf8 {[%clk
0:00:09.8]} 102... Qf5+ {[%clk 0:00:19.6]} 103. Ke7 {[%clk 0:00:10]} 103... Qg6
{[%clk 0:00:20.2]} 104. Kf8 {[%clk 0:00:10.6]} 104... Qf6+ {[%clk 0:00:20.8]}
105. Kg8 {[%clk 0:00:11.4]} 105... Kg5 {[%clk 0:00:21.5]} 106. Kh7 {[%clk
0:00:12.3]} 106... Qe7 {[%clk 0:00:21.2]} 107. Kh8 {[%clk 0:00:11.9]} 107... Qe5
{[%clk 0:00:21.3]} 108. Kh7 {[%clk 0:00:12.2]} 108... Qf5+ {[%clk 0:00:21.5]}
109. Kh8 {[%clk 0:00:12.6]} 109... Qh3+ {[%clk 0:00:22.3]} 110. Kg8 {[%clk
0:00:12.9]} 110... Kf6 {[%clk 0:00:23.2]} 111. Kf8 {[%clk 0:00:13.3]} 111...
Qc8# {[%clk 0:00:24.1]} 0-1

[Event "Late-Titled-Tuesday-Blitz-November-28-2023"]
[Site "Chess.com"]
[Date "2023.11.28"]
[Round "5"]
[White "EvilMorty23"]
[Black "GHANDEEVAM2003"]
[Result "0-1"]
[WhiteElo "2485"]
[BlackElo "3115"]
[TimeControl "180+1"]
[EndTime "14:48:07 PST"]
[Termination "GHANDEEVAM2003 won by resignation"]

1. e4 {[%clk 0:02:59.8]} 1... g6 {[%clk 0:02:56.7]} 2. d4 {[%clk 0:02:58.9]}
2... Bg7 {[%clk 0:02:57.6]} 3. Nc3 {[%clk 0:02:59.3]} 3... d6 {[%clk 0:02:57.3]}
4. f4 {[%clk 0:02:59.6]} 4... a6 {[%clk 0:02:55.8]} 5. a4 {[%clk 0:02:59.4]}
5... Nc6 {[%clk 0:02:55.9]} 6. Be3 {[%clk 0:02:58.4]} 6... Nf6 {[%clk
0:02:55.4]} 7. Be2 {[%clk 0:02:58.4]} 7... d5 {[%clk 0:02:54.4]} 8. e5 {[%clk
0:02:56.4]} 8... Ne4 {[%clk 0:02:54.7]} 9. Bf3 {[%clk 0:02:55.9]} 9... Nxc3
{[%clk 0:02:53.2]} 10. bxc3 {[%clk 0:02:56.8]} 10... Na5 {[%clk 0:02:53.7]} 11.
Ne2 {[%clk 0:02:53.8]} 11... Nc4 {[%clk 0:02:53.6]} 12. Bc1 {[%clk 0:02:54.7]}
12... h5 {[%clk 0:02:52.3]} 13. O-O {[%clk 0:02:54.5]} 13... c6 {[%clk
0:02:52.1]} 14. Rb1 {[%clk 0:02:51.7]} 14... b5 {[%clk 0:02:49.9]} 15. axb5
{[%clk 0:02:49.2]} 15... axb5 {[%clk 0:02:50.8]} 16. Re1 {[%clk 0:02:44.3]}
16... Ra2 {[%clk 0:02:49.4]} 17. Ng3 {[%clk 0:02:44.1]} 17... Qa5 {[%clk
0:02:46.2]} 18. Qd3 {[%clk 0:02:43.7]} 18... h4 {[%clk 0:02:45.8]} 19. Nf1
{[%clk 0:02:43.8]} 19... Bf5 {[%clk 0:02:46.1]} 20. Qd1 {[%clk 0:02:37.6]} 20...
Bxc2 {[%clk 0:02:45.4]} 0-1

[Event "Late-Titled-Tuesday-Blitz-November-28-2023"]
[Site "Chess.com"]
[Date "2023.11.28"]
[Round "5"]
[White "Oleksandr_Bortnyk"]
[Black "Dinamo81"]
[Result "1-0"]
[WhiteElo "3054"]
[BlackElo "2716"]
[TimeControl "180+1"]
[EndTime "14:49:10 PST"]
[Termination "Oleksandr_Bortnyk won by resignation"]

1. e4 {[%clk 0:03:00.9]} 1... c5 {[%clk 0:02:59.9]} 2. c3 {[%clk 0:03:00.8]}
2... Nf6 {[%clk 0:02:58.9]} 3. e5 {[%clk 0:03:01.3]} 3... Nd5 {[%clk 0:02:59.3]}
4. d4 {[%clk 0:03:02.2]} 4... cxd4 {[%clk 0:02:59.3]} 5. Nf3 {[%clk 0:03:03]}
5... d6 {[%clk 0:02:57.3]} 6. cxd4 {[%clk 0:03:02.5]} 6... Nc6 {[%clk
0:02:57.4]} 7. Bc4 {[%clk 0:03:02.6]} 7... Nb6 {[%clk 0:02:56.6]} 8. Bb5 {[%clk
0:03:02.6]} 8... Bd7 {[%clk 0:02:56.8]} 9. Nc3 {[%clk 0:02:51.6]} 9... dxe5
{[%clk 0:02:37.5]} 10. d5 {[%clk 0:02:35.1]} 10... Nd4 {[%clk 0:02:24.7]} 11.
Bxd7+ {[%clk 0:02:34.1]} 11... Qxd7 {[%clk 0:02:25.3]} 12. Nxe5 {[%clk
0:02:31.7]} 1-0

[Event "Late-Titled-Tuesday-Blitz-November-28-2023"]
[Site "Chess.com"]
[Date "2023.11.28"]
[Round "5"]
[White "TheCavemanChess"]
[Black "djano"]
[Result "0-1"]
[WhiteElo "2709"]
[BlackElo "2584"]
[TimeControl "180+1"]
[EndTime "14:49:23 PST"]
[Termination "djano won by resignation"]

1. c4 {[%clk 0:03:00.9]} 1... e6 {[%clk 0:02:59.9]} 2. Nc3 {[%clk 0:02:59.5]}
2... d5 {[%clk 0:03:00.8]} 3. d4 {[%clk 0:03:00.4]} 3... c5 {[%clk 0:03:00.5]}
4. cxd5 {[%clk 0:03:00.4]} 4... cxd4 {[%clk 0:03:00.1]} 5. Qxd4 {[%clk
0:03:00.5]} 5... exd5 {[%clk 0:03:00.3]} 6. Nf3 {[%clk 0:03:00.9]} 6... Nf6
{[%clk 0:02:59.8]} 7. Bd2 {[%clk 0:03:01.4]} 7... Nc6 {[%clk 0:02:59.1]} 8. Qa4
{[%clk 0:03:01.3]} 8... d4 {[%clk 0:02:58]} 9. Nb5 {[%clk 0:03:00.8]} 9... Bc5
{[%clk 0:02:51.2]} 10. Rc1 {[%clk 0:02:50.3]} 10... Bb6 {[%clk 0:02:49.1]} 11.
Bb4 {[%clk 0:02:45.4]} 11... Nxb4 {[%clk 0:02:17.4]} 12. Nc7+ {[%clk 0:02:39.3]}
12... Kf8 {[%clk 0:02:17.3]} 13. Nxa8 {[%clk 0:02:08.2]} 13... Ba5 {[%clk
0:02:17.3]} 14. Nd2 {[%clk 0:02:00.3]} 14... Ne4 {[%clk 0:02:01.7]} 15. Nxe4
{[%clk 0:01:49]} 15... Nd3+ {[%clk 0:02:00.7]} 16. Kd1 {[%clk 0:01:48.2]} 16...
Nxb2+ {[%clk 0:02:00.9]} 17. Kc2 {[%clk 0:01:47.4]} 17... Nxa4 {[%clk
0:02:01.1]} 0-1

[Event "Late-Titled-Tuesday-Blitz-November-28-2023"]
[Site "Chess.com"]
[Date "2023.11.28"]
[Round "5"]
[White "PapaieDudu"]
[Black "Zorbos"]
[Result "1-0"]
[WhiteElo "2420"]
[BlackElo "2556"]
[TimeControl "180+1"]
[EndTime "14:49:39 PST"]
[Termination "PapaieDudu won by resignation"]

1. e4 {[%clk 0:02:52.3]} 1... e5 {[%clk 0:02:57.6]} 2. Nf3 {[%clk 0:02:51.5]}
2... Nc6 {[%clk 0:02:56.6]} 3. Bb5 {[%clk 0:02:49.8]} 3... a6 {[%clk 0:02:56.1]}
4. Ba4 {[%clk 0:02:49.1]} 4... Nf6 {[%clk 0:02:53.5]} 5. d3 {[%clk 0:02:46.2]}
5... Be7 {[%clk 0:02:52.5]} 6. O-O {[%clk 0:02:43]} 6... d6 {[%clk 0:02:52.5]}
7. h3 {[%clk 0:02:41.3]} 7... O-O {[%clk 0:02:50.8]} 8. Re1 {[%clk 0:02:38.2]}
8... Re8 {[%clk 0:02:48.1]} 9. c3 {[%clk 0:02:37.7]} 9... Bf8 {[%clk 0:02:46.8]}
10. Nbd2 {[%clk 0:02:37.9]} 10... h6 {[%clk 0:02:43.2]} 11. Qe2 {[%clk
0:02:30.6]} 11... Be6 {[%clk 0:02:39.9]} 12. d4 {[%clk 0:02:29.2]} 12... b5
{[%clk 0:02:33.2]} 13. Bc2 {[%clk 0:02:28.1]} 13... exd4 {[%clk 0:02:29.3]} 14.
cxd4 {[%clk 0:02:28.2]} 14... Nb4 {[%clk 0:02:30]} 15. Bb1 {[%clk 0:02:27.6]}
15... d5 {[%clk 0:02:00.6]} 16. e5 {[%clk 0:02:24.8]} 16... Nd7 {[%clk
0:01:58.2]} 17. a3 {[%clk 0:02:25.2]} 17... Nc6 {[%clk 0:01:57.8]} 18. Qd3
{[%clk 0:02:25.1]} 18... g6 {[%clk 0:01:58.4]} 19. Nf1 {[%clk 0:02:21.3]} 19...
Bf5 {[%clk 0:01:49.2]} 20. Qe3 {[%clk 0:02:20.3]} 20... Bxb1 {[%clk 0:01:50.1]}
21. Rxb1 {[%clk 0:02:20.9]} 21... Bg7 {[%clk 0:01:43.6]} 22. N1h2 {[%clk
0:02:19]} 22... Nf8 {[%clk 0:01:44.3]} 23. Ng4 {[%clk 0:02:19]} 23... h5 {[%clk
0:01:44.9]} 24. Nh6+ {[%clk 0:02:18]} 24... Bxh6 {[%clk 0:01:43.1]} 25. Qxh6
{[%clk 0:02:17.5]} 1-0

[Event "Late-Titled-Tuesday-Blitz-November-28-2023"]
[Site "Chess.com"]
[Date "2023.11.28"]
[Round "5"]
[White "Msb2"]
[Black "The_Machine04"]
[Result "1-0"]
[WhiteElo "3028"]
[BlackElo "2670"]
[TimeControl "180+1"]
[EndTime "14:50:12 PST"]
[Termination "Msb2 won by resignation"]

1. d4 {[%clk 0:03:00.9]} 1... d5 {[%clk 0:02:59]} 2. c4 {[%clk 0:03:01.2]} 2...
e6 {[%clk 0:02:58.5]} 3. Nc3 {[%clk 0:03:01.4]} 3... Nf6 {[%clk 0:02:58.4]} 4.
cxd5 {[%clk 0:03:01.7]} 4... exd5 {[%clk 0:02:58.2]} 5. Bg5 {[%clk 0:03:01.9]}
5... Be7 {[%clk 0:02:58.5]} 6. e3 {[%clk 0:03:02.3]} 6... c6 {[%clk 0:02:58.7]}
7. Bd3 {[%clk 0:03:02.8]} 7... Nbd7 {[%clk 0:02:57.2]} 8. h3 {[%clk 0:03:03.3]}
8... h6 {[%clk 0:02:56.6]} 9. Bf4 {[%clk 0:03:03.4]} 9... Nb6 {[%clk 0:02:49.3]}
10. Nf3 {[%clk 0:03:00.7]} 10... Bd6 {[%clk 0:02:43.6]} 11. Ne5 {[%clk
0:02:58.4]} 11... Be6 {[%clk 0:02:38.4]} 12. Bg3 {[%clk 0:02:56.5]} 12... Qe7
{[%clk 0:02:35.4]} 13. O-O {[%clk 0:02:53.8]} 13... O-O {[%clk 0:02:34.2]} 14.
f4 {[%clk 0:02:53.7]} 14... Nc4 {[%clk 0:02:24]} 15. Qe2 {[%clk 0:02:47.5]}
15... c5 {[%clk 0:02:14.4]} 16. f5 {[%clk 0:02:36]} 16... Bd7 {[%clk 0:01:41.7]}
17. Nxd5 {[%clk 0:02:30.7]} 17... Nxd5 {[%clk 0:01:39.5]} 18. Bxc4 {[%clk
0:02:31.2]} 18... Nf6 {[%clk 0:01:15.8]} 19. Ng6 {[%clk 0:02:22.8]} 19... Qe4
{[%clk 0:00:54.5]} 20. Bxd6 {[%clk 0:02:18.2]} 1-0

[Event "Late-Titled-Tuesday-Blitz-November-28-2023"]
[Site "Chess.com"]
[Date "2023.11.28"]
[Round "5"]
[White "Abduzhaparov"]
[Black "SnekkerAndersen"]
[Result "1-0"]
[WhiteElo "2420"]
[BlackElo "2552"]
[TimeControl "180+1"]
[EndTime "14:50:16 PST"]
[Termination "Abduzhaparov won by resignation"]

1. Nf3 {[%clk 0:03:00.9]} 1... d5 {[%clk 0:02:59.8]} 2. c4 {[%clk 0:03:01.8]}
2... e6 {[%clk 0:02:59.2]} 3. g3 {[%clk 0:03:01.7]} 3... Nf6 {[%clk 0:02:59.7]}
4. Bg2 {[%clk 0:03:02.6]} 4... Be7 {[%clk 0:03:00.6]} 5. d4 {[%clk 0:03:02.2]}
5... O-O {[%clk 0:03:01]} 6. Qc2 {[%clk 0:03:02.7]} 6... dxc4 {[%clk 0:03:01.9]}
7. Nbd2 {[%clk 0:03:02.9]} 7... Nc6 {[%clk 0:02:57.8]} 8. Nxc4 {[%clk
0:03:01.8]} 8... Nxd4 {[%clk 0:02:51.2]} 9. Nxd4 {[%clk 0:03:02.7]} 9... Qxd4
{[%clk 0:02:51.7]} 10. O-O {[%clk 0:03:01]} 10... Nd5 {[%clk 0:02:29.1]} 11. a3
{[%clk 0:02:53.9]} 11... Bd7 {[%clk 0:02:24]} 12. Rd1 {[%clk 0:02:46.6]} 12...
Qf6 {[%clk 0:02:15.8]} 13. e4 {[%clk 0:02:41.9]} 13... Qg6 {[%clk 0:02:15.1]}
14. Ne5 {[%clk 0:02:28]} 14... Qh5 {[%clk 0:02:08.9]} 15. Nxd7 {[%clk 0:02:25]}
15... Rfd8 {[%clk 0:02:09.4]} 16. exd5 {[%clk 0:02:15.3]} 16... Rxd7 {[%clk
0:02:09.8]} 17. Bf4 {[%clk 0:01:55.7]} 17... exd5 {[%clk 0:02:09.2]} 18. Qb3
{[%clk 0:01:49.6]} 18... c6 {[%clk 0:02:09.1]} 19. Re1 {[%clk 0:01:48.2]} 19...
Bf6 {[%clk 0:02:00.8]} 20. Rad1 {[%clk 0:01:44.8]} 20... h6 {[%clk 0:01:59.7]}
21. Qf3 {[%clk 0:01:40]} 21... Qg6 {[%clk 0:01:58.1]} 22. Bh3 {[%clk 0:01:39.2]}
22... Rdd8 {[%clk 0:01:56.6]} 23. Bc7 {[%clk 0:01:36.3]} 23... Re8 {[%clk
0:01:56.2]} 24. Rxe8+ {[%clk 0:01:20.7]} 24... Rxe8 {[%clk 0:01:57.1]} 25. Bf5
{[%clk 0:01:20.5]} 25... Qg5 {[%clk 0:01:57.5]} 26. h4 {[%clk 0:01:20]} 1-0

[Event "Late-Titled-Tuesday-Blitz-November-28-2023"]
[Site "Chess.com"]
[Date "2023.11.28"]
[Round "5"]
[White "liwadas82"]
[Black "miraitrunks"]
[Result "1-0"]
[WhiteElo "2370"]
[BlackElo "2042"]
[TimeControl "180+1"]
[EndTime "14:50:26 PST"]
[Termination "liwadas82 won by resignation"]

1. e4 {[%clk 0:03:00.9]} 1... c5 {[%clk 0:02:58.6]} 2. Nf3 {[%clk 0:03:00.5]}
2... Nc6 {[%clk 0:02:58.9]} 3. d4 {[%clk 0:03:01.1]} 3... cxd4 {[%clk
0:02:59.8]} 4. Nxd4 {[%clk 0:03:01.8]} 4... e5 {[%clk 0:03:00.2]} 5. Nb5 {[%clk
0:03:01.9]} 5... a6 {[%clk 0:03:00.6]} 6. Nd6+ {[%clk 0:03:02]} 6... Bxd6 {[%clk
0:03:01.2]} 7. Qxd6 {[%clk 0:03:02.5]} 7... Qf6 {[%clk 0:03:02.1]} 8. Qc7 {[%clk
0:03:02]} 8... Nge7 {[%clk 0:03:02.5]} 9. Bd3 {[%clk 0:02:57.3]} 9... O-O {[%clk
0:03:02.3]} 10. Nc3 {[%clk 0:02:51.6]} 10... b5 {[%clk 0:03:01.9]} 11. Qb6
{[%clk 0:02:40.5]} 11... Qg6 {[%clk 0:02:35.2]} 12. O-O {[%clk 0:02:32.8]} 12...
Rb8 {[%clk 0:02:30.1]} 13. Qe3 {[%clk 0:02:31.2]} 13... Nb4 {[%clk 0:02:25.2]}
14. f4 {[%clk 0:02:26.5]} 14... Nxd3 {[%clk 0:02:22.9]} 15. cxd3 {[%clk
0:02:26.1]} 15... exf4 {[%clk 0:02:00.9]} 16. Qxf4 {[%clk 0:02:15.6]} 16... Bb7
{[%clk 0:01:58.4]} 17. Be3 {[%clk 0:02:09]} 17... b4 {[%clk 0:01:56.6]} 18. Na4
{[%clk 0:02:03.3]} 18... Rfc8 {[%clk 0:01:12.3]} 19. Nb6 {[%clk 0:02:00.4]}
19... Rc6 {[%clk 0:01:12.4]} 20. Nxd7 {[%clk 0:01:57.3]} 20... Rd8 {[%clk
0:01:05.7]} 21. Ne5 {[%clk 0:01:57.3]} 1-0

[Event "Late-Titled-Tuesday-Blitz-November-28-2023"]
[Site "Chess.com"]
[Date "2023.11.28"]
[Round "5"]
[White "Cristi_Coca"]
[Black "TanitoluwaAps116"]
[Result "0-1"]
[WhiteElo "2459"]
[BlackElo "2693"]
[TimeControl "180+1"]
[EndTime "14:50:38 PST"]
[Termination "TanitoluwaAps116 won by resignation"]

1. e4 {[%clk 0:03:00.9]} 1... c5 {[%clk 0:02:56.6]} 2. c3 {[%clk 0:03:01.3]}
2... Nf6 {[%clk 0:02:55.9]} 3. e5 {[%clk 0:03:01.7]} 3... Nd5 {[%clk 0:02:56.5]}
4. Nf3 {[%clk 0:03:02.5]} 4... Nc6 {[%clk 0:02:55.7]} 5. Bc4 {[%clk 0:03:02.4]}
5... e6 {[%clk 0:02:55.8]} 6. d4 {[%clk 0:03:02.4]} 6... cxd4 {[%clk 0:02:55.1]}
7. cxd4 {[%clk 0:03:03.3]} 7... d6 {[%clk 0:02:55.5]} 8. O-O {[%clk 0:03:02.8]}
8... Be7 {[%clk 0:02:55.2]} 9. Qe2 {[%clk 0:03:02.4]} 9... O-O {[%clk
0:02:55.1]} 10. Qe4 {[%clk 0:03:02.3]} 10... Qc7 {[%clk 0:02:45.8]} 11. Bb3
{[%clk 0:02:53.3]} 11... Bd7 {[%clk 0:02:39.4]} 12. Rd1 {[%clk 0:02:42.7]} 12...
Rad8 {[%clk 0:02:35.8]} 13. Nc3 {[%clk 0:02:28.9]} 13... Nxc3 {[%clk 0:02:33.3]}
14. bxc3 {[%clk 0:02:29.8]} 14... dxe5 {[%clk 0:02:30.3]} 15. dxe5 {[%clk
0:02:30.7]} 15... Na5 {[%clk 0:02:09.4]} 16. Bc2 {[%clk 0:02:29.5]} 16... g6
{[%clk 0:02:08.7]} 17. Bh6 {[%clk 0:02:28.4]} 17... Rfe8 {[%clk 0:02:03.4]} 18.
Qf4 {[%clk 0:02:28.4]} 18... Bc6 {[%clk 0:01:39.5]} 19. Ng5 {[%clk 0:02:18.8]}
19... Rxd1+ {[%clk 0:01:09.7]} 20. Rxd1 {[%clk 0:02:16.4]} 20... f6 {[%clk
0:01:10.2]} 21. exf6 {[%clk 0:02:06.3]} 21... Qxf4 {[%clk 0:01:09.8]} 22. fxe7
{[%clk 0:01:42.1]} 22... Qh4 {[%clk 0:01:09.9]} 23. Bf8 {[%clk 0:01:34.5]} 0-1

[Event "Late-Titled-Tuesday-Blitz-November-28-2023"]
[Site "Chess.com"]
[Date "2023.11.28"]
[Round "5"]
[White "campochess"]
[Black "MathiasWomacka"]
[Result "0-1"]
[WhiteElo "2195"]
[BlackElo "2524"]
[TimeControl "180+1"]
[EndTime "14:50:55 PST"]
[Termination "MathiasWomacka won by resignation"]

1. e4 {[%clk 0:02:59.7]} 1... c5 {[%clk 0:03:00.4]} 2. Nc3 {[%clk 0:02:57.5]}
2... Nc6 {[%clk 0:02:58.6]} 3. g3 {[%clk 0:02:57.2]} 3... g6 {[%clk 0:02:57.7]}
4. Bg2 {[%clk 0:02:57.2]} 4... Bg7 {[%clk 0:02:56.3]} 5. Nge2 {[%clk 0:02:57.2]}
5... d6 {[%clk 0:02:53.6]} 6. d3 {[%clk 0:02:55.7]} 6... e5 {[%clk 0:02:52.2]}
7. O-O {[%clk 0:02:55.3]} 7... Nge7 {[%clk 0:02:51.5]} 8. Rb1 {[%clk 0:02:52.9]}
8... O-O {[%clk 0:02:51.2]} 9. a3 {[%clk 0:02:52.8]} 9... Be6 {[%clk 0:02:49.1]}
10. b4 {[%clk 0:02:52.4]} 10... b6 {[%clk 0:02:46.8]} 11. h3 {[%clk 0:02:50.4]}
11... Rc8 {[%clk 0:02:44.3]} 12. Bg5 {[%clk 0:02:49]} 12... Qd7 {[%clk
0:02:39.5]} 13. Bxe7 {[%clk 0:02:47.8]} 13... Nxe7 {[%clk 0:02:37.4]} 14. Nd5
{[%clk 0:02:47.6]} 14... Nxd5 {[%clk 0:02:34.9]} 15. exd5 {[%clk 0:02:46.3]}
15... Bxh3 {[%clk 0:02:35.5]} 16. Bxh3 {[%clk 0:02:44.8]} 16... Qxh3 {[%clk
0:02:36.4]} 17. c4 {[%clk 0:02:42.7]} 17... h5 {[%clk 0:02:16.5]} 18. Nc3 {[%clk
0:02:40.1]} 18... h4 {[%clk 0:02:13.1]} 19. Qf3 {[%clk 0:02:39.7]} 19... hxg3
{[%clk 0:02:12.1]} 20. Qxg3 {[%clk 0:02:39.7]} 20... Qxg3+ {[%clk 0:02:11.5]}
21. fxg3 {[%clk 0:02:39.8]} 21... f5 {[%clk 0:02:02.4]} 22. Nb5 {[%clk
0:02:38.9]} 22... e4 {[%clk 0:01:40.6]} 23. dxe4 {[%clk 0:02:37.1]} 23... fxe4
{[%clk 0:01:38.3]} 24. Rxf8+ {[%clk 0:02:36.8]} 24... Rxf8 {[%clk 0:01:37.3]}
25. Nxa7 {[%clk 0:02:34.7]} 25... Bd4+ {[%clk 0:01:34.8]} 26. Kg2 {[%clk
0:02:34.7]} 26... Rf2+ {[%clk 0:01:31.7]} 27. Kh3 {[%clk 0:02:34.6]} 27... e3
{[%clk 0:01:28.2]} 28. Nb5 {[%clk 0:02:33.2]} 28... Be5 {[%clk 0:01:25.4]} 29.
bxc5 {[%clk 0:02:28.9]} 29... bxc5 {[%clk 0:01:24.2]} 30. Nc7 {[%clk 0:02:16.9]}
30... e2 {[%clk 0:01:20.5]} 31. Ne6 {[%clk 0:02:08.8]} 31... Rf1 {[%clk
0:01:17.2]} 32. Rb8+ {[%clk 0:02:06.3]} 32... Kf7 {[%clk 0:01:17.1]} 33. Ng5+
{[%clk 0:02:05.5]} 33... Ke7 {[%clk 0:01:15]} 34. Rb7+ {[%clk 0:02:02.7]} 34...
Kd8 {[%clk 0:01:06]} 35. Ne6+ {[%clk 0:02:00]} 35... Kc8 {[%clk 0:01:05.7]} 0-1